Cogmind - Beta 13 @@@ ROGUE MODE // 2024.04.07 @ 04:54:19 Player: Thunder948 Result: Destroyed by G-47 Trooper with Particle Gun Performance ------------- Evolutions (2) 1000 Regions Visited (3) 600 Robots Destroyed (34) 170 Value Destroyed (1091) 1091 Prototype IDs (3) 60 Alien Tech Used (0) 0 Bonus (0) 0 TOTAL SCORE: 2921 Bonus ------- None Cogmind --------- Core Integrity 0/550 Matter 300/300 Energy 100/100 System Corruption 0% Temperature Cool (9) Movement Core (350) Ox6 Location -8/Materials Parts ------- > --- POWER (1) -------- (None) > --- PROPULSION (4) --- (None) > --- UTILITY (4) ------ Large Storage Unit > --- WEAPON (2) ------- (None) > --- INVENTORY (15) --- Aluminum Leg Aluminum Leg High-capacity Storage Unit High-capacity Battery (250) Medium Matter Pod (100) Improved Terrain Scan Processor Recoil Stabilizer Recoil Stabilizer ECM Suite Core Shielding Backup Plating I Spread Laser Improved Light Cannon Assault Cannon Peak State ------------ > --- POWER ------------ Improved Ion Engine > --- PROPULSION ------- Airjet Airjet > --- UTILITY ---------- Large Storage Unit Seismic Detector Recoil Stabilizer Recoil Stabilizer > --- WEAPON ----------- Heavy Particle Gun Heavy Particle Gun > --- INVENTORY -------- Aluminum Leg Aluminum Leg High-capacity Storage Unit High-capacity Battery Medium Matter Pod Terrain Scanner Recoil Stabilizer Recoil Stabilizer ECM Suite Core Shielding Backup Plating I Spread Laser Improved Light Cannon [Rating: 25] Favorites ----------- Power Ion Engine Engine Ion Engine Propulsion Improved Hover Unit Treads Light Treads Leg Aluminum Leg Wheel Wheel Hover Unit Improved Hover Unit Flight Unit Flight Unit Utility Large Storage Unit Device Recoil Stabilizer Storage Large Storage Unit Processor Signal Interpreter Protection Backup Plating I Weapon Heavy Particle Gun Energy Gun Heavy Particle Gun Ballistic Gun Assault Rifle Launcher Grenade Launcher Special Weapon Mining Laser Impact Weapon Hammer Slashing Weapon Katana Special Melee Weapon Datajack Build | -11 -10 -9 -8 ------- Run | Yrd Mat Mat Mat Slots Evolved 4 | . . 2 2 Power . | . . . . Propulsion 2 | . . . 2 Utility 2 | . . 2 . Weapon . | . . . . Parts Attached 54 | 9 25 19 1 Power 5 | 2 1 2 . Engine 5 | 2 1 2 . Core . | . . . . Reactor . | . . . . Propulsion 17 | 4 7 6 . Treads 2 | . 2 . . Leg 6 | 2 . 4 . Wheel 4 | 2 2 . . Hover 4 | . 2 2 . Flight 1 | . 1 . . Utility 14 | 1 5 7 1 Device 10 | . 4 5 1 Storage 2 | 1 1 . . Processor 1 | . . 1 . Hackware . | . . . . Protection 1 | . . 1 . Artifact . | . . . . Weapon 18 | 2 12 4 . Energy Gun 9 | . 6 3 . Energy Cannon . | . . . . Ballistic Gun 2 | 2 . . . Ballistic Cannon . | . . . . Launcher 2 | . 2 . . Special Weapon 2 | . 2 . . Impact Weapon 1 | . 1 . . Slashing Weapon 1 | . . 1 . Piercing Weapon . | . . . . Special Melee Weapon 1 | . 1 . . Unidentified Prototypes 1 | . . 1 . Corrupted Parts 4 | . 1 3 . System Corruption 31 | . 6 25 . Parts Lost 19 | . 3 9 7 Power 4 | . 1 3 . Propulsion 5 | . 1 3 1 Utility 6 | . 1 1 4 Weapon 4 | . . 2 2 Highest Loss Streak 5 | . 1 2 5 To Critical Strikes . | . . . . Average Slot Usage (%) 92 | . 96 96 50 Engine 11 | . 13 10 . Treads 5 | . 7 3 . Leg 3 | . . 9 . Wheel 2 | . 4 . . Hover 12 | . 15 8 6 Device 18 | . 12 25 20 Storage 12 | . 14 11 9 Processor 2 | . . 6 . Energy Gun 15 | . 16 13 14 Impact Weapon 2 | . 2 2 . Slashing Weapon 1 | . . 4 . Special Melee Weapon 2 | . 5 . . Naked Turns . | . . . . Heaviest Build 36 | 11 31 36 29 Greatest Support 40 | 20 40 40 8 Greatest Overweight (x) 4 | . 4 3 3 Average Overweight (x) 1 | . . 1 3 Largest Inventory Capacity 15 | 5 15 15 15 Average Capacity 13 | 5 12 15 15 Most Carried 15 | 4 14 15 15 Average Carried 9 | 1 6 12 13 Final Capacity 15 | 5 15 15 15 Final Carried 14 | 3 13 13 14 Class Distribution -------------------- 76% | Mutant 9% | Scavenger-Mutant 7% | Scavenger-Assassin 6% | Assassin Dominant Class ---------------- Mutant | -10/Materials Mutant | -9/Materials Mutant | -8/Materials Resources | -11 -10 -9 -8 ----------- Run | Yrd Mat Mat Mat Matter Collected 868 | 380 297 191 . Remotely . | . . . . Salvage Created 1166 | 68 358 740 . Parts 63 | 4 25 34 . Haulers Intercepted . | . . . . Recyclers Shooed . | . . . . Parts Field Recycled . | . . . . Retrieved Matter . | . . . . Parts Self-Destructed . | . . . . Prevented . | . . . . Kills | -11 -10 -9 -8 ------- Run | Yrd Mat Mat Mat Combat Hostiles Destroyed 28 | 1 12 15 . Melee 7 | . 1 6 . Guns 13 | 1 7 5 . AOE 4 | . 2 2 . Classes Destroyed 6 | 2 2 2 . Worker 2 | 1 . 1 . Watcher 4 | . 1 3 . Swarmer 3 | . 3 . . Grunt 21 | 1 9 11 . Duelist 1 | . . 1 . Sentry 3 | . . 3 . Best Kill Streak 5 | 1 3 5 . Combat Bots Only 4 | 1 3 4 . Max Kills in Single Turn 3 | 1 2 3 . Gunslinging . | . . . . Exploded 2 | . 2 2 . Melee 1 | . 1 1 . Uniques/NPCs Destroyed . | . . . . Combat | -11 -10 -9 -8 -------- Run | Yrd Mat Mat Mat Hostile Shots Fired 261 | 8 63 98 92 Missed 70 | 4 14 31 21 Damage Taken 2857 | 43 613 1070 1131 Core 1080 | . 152 366 562 Absorbed by Shields . | . . . . Regen/Repaired (Parts) 41 | . 41 . . Core Remaining (%) 49 | 100 39 8 . Volleys Fired 92 | 7 31 50 4 Largest 2 | 2 2 2 2 Hottest 200 | 40 200 110 110 Shots Fired 128 | 14 39 67 8 Gun 125 | 14 36 67 8 Cannon . | . . . . Launcher 1 | . 1 . . Special 2 | . 2 . . Kinetic 16 | 14 2 . . Thermal 79 | . 36 35 8 Explosive 1 | . 1 . . Electromagnetic 32 | . . 32 . Robot Hit Streak 8 | 3 8 8 1 Robot Miss Streak 15 | 2 15 3 2 Penetration Max . | . . . . Secondary Targets . | . . . . Shots Hit Robots 114 | 7 41 64 2 Core Hits 62 | 3 36 20 3 Critical Kills 1 | . 1 . . Critical Parts Destroyed 7 | . 2 5 . Critical Strikes 8 | . 3 5 . Smash 8 | . 3 5 . Melee Attacks 48 | . 13 35 . Impact 36 | . 8 28 . Slashing 7 | . . 7 . Piercing . | . . . . Sneak Attacks 1 | . 1 . . Combat Hostiles . | . . . . Follow-up Attacks . | . . . . Damage Inflicted 2585 | 91 635 1785 74 Guns 1112 | 91 382 583 56 Cannons . | . . . . Explosions 501 | . 96 405 . Melee 954 | . 157 797 . Ramming 18 | . . . 18 Kinetic 119 | 91 28 . . Thermal 1101 | . 354 691 56 Explosive 96 | . 96 . . Electromagnetic 297 | . . 297 . Impact 797 | . 157 640 . Slashing 157 | . . 157 . Piercing . | . . . . Highest Corruption 25 | . 6 25 . Average Corruption 24 | . 6 24 . Corruption Purged . | . . . . Corruption Blocked . | . . . . Effects 46 | . . 46 . Message Errors 11 | . . 11 . Matter Fused 12 | . . 12 . Heat Flow Errors 4 | . . 4 . Energy Discharges 6 | . . 6 . Data Loss (minor) 7 | . . 7 . Data Loss (major) 2 | . . 2 . Misfires 2 | . . 2 . Weapon Failures 2 | . . 2 . Overload Shots . | . . . . Overflow Damage 242 | . 50 192 . Projectiles . | . . . . Explosions 38 | . . 38 . Melee 204 | . 50 154 . Knockbacks 3 | . 1 2 . Impact 3 | . 1 2 . Kinetic . | . . . . Secondary . | . . . . Self-Inflicted Damage 119 | . . 117 2 Shots 2 | . . 2 . Rammed 21 | . . . 21 Targets Rammed 21 | . . . 21 Kicked . | . . . . Crushed . | . . . . Highest Temperature 363 | . 196 363 90 Average Temperature 78 | . 68 88 40 Received Heat Transfer 1380 | 24 231 396 729 Effects 3 | . . 3 . Interference 3 | . . 3 . Siege Activations . | . . . . Robots Corrupted . | . . . . Combat Hostiles . | . . . . Parts Fried 7 | . 2 5 . Impact Corruptions 8 | . 2 6 . Robots Melted . | . . . . Combat Hostiles . | . . . . Parts Melted 2 | . . 2 . Heat Transferred 1436 | . 520 805 111 Parts Sabotaged . | . . . . Parts Stolen . | . . . . Parts Stripped . | . . . . Power Chain Reactions 1 | . . 1 . Alert | -11 -10 -9 -8 ------- Run | Yrd Mat Mat Mat Peak Influence 358 | 25 250 358 94 Initial 89 | . 16 22 89 Average 130 | 5 98 192 75 Maximum Alert Level 1 | . 1 1 . Low Security (%) 68 | 100 84 40 100 Level 1 31 | . 15 59 . Level 2 . | . . . . Level 3 . | . . . . Level 4 . | . . . . Level 5 . | . . . . High Security . | . . . . Max Security . | . . . . Squads Dispatched 6 | . 3 3 . Investigation 3 | . 2 1 . Extermination . | . . . . Reinforcement 3 | . 1 2 . Assault . | . . . . Garrison . | . . . . Intercept . | . . . . Searches Triggered . | . . . . Construction Impeded . | . . . . Haulers Reinforced . | . . . . Active Scanning Responses . | . . . . Cargo Convoy Interrupts . | . . . . Stealth | -11 -10 -9 -8 --------- Run | Yrd Mat Mat Mat Distress Signals 2 | . . 2 . Communications Jammed . | . . . . Distress Signals . | . . . . Times Spotted 50 | 1 23 24 2 Peak Tracking Total 6 | 1 4 6 2 Tactical Retreats . | . . . . Traps | -11 -10 -9 -8 ------- Run | Yrd Mat Mat Mat Traps Triggered 1 | . 1 . . Indirectly . | . . . . Trap Hack Attempts . | . . . . Triggered . | . . . . Disarmed . | . . . . Reprogrammed . | . . . . Reused . | . . . . Traps Extracted . | . . . . Installed . | . . . . Triggered . | . . . . Machines | -11 -10 -9 -8 ---------- Run | Yrd Mat Mat Mat Machines Disabled 6 | . 1 4 1 Max in Single Turn 3 | . 1 3 1 Machines Repaired . | . . . . Machines Dismantled . | . . . . Machines Sabotaged . | . . . . Overloaded Fab Kills . | . . . . Hacking | -11 -10 -9 -8 --------- Run | Yrd Mat Mat Mat Machines Accessed 16 | . 10 5 1 Terminals 12 | . 7 5 . Fabricators . | . . . . Repair Stations 1 | . 1 . . Recycling Units 3 | . 2 . 1 Scanalyzers . | . . . . Garrison Access . | . . . . Total Hacks 53 | . 38 14 1 Successful 32 | . 25 6 1 Failed 21 | . 13 8 . Catastrophic 5 | . 2 3 . Database Lockouts . | . . . . Manual 13 | . 8 5 . Terminals 37 | . 23 14 . Fabricators . | . . . . Repair Stations 7 | . 7 . . Recycling Units 9 | . 8 . 1 Scanalyzers . | . . . . Garrison Access . | . . . . Terminal Hacks 19 | . 13 6 . Record 7 | . 2 5 . Robot Analysis 1 | . 1 . . Prototype ID Bank 2 | . 2 . . Alert Level 3 | . 3 . . Locate Traps 1 | . 1 . . Dispatch Records 2 | . 2 . . Maintenance Status 1 | . . 1 . Transport Status 1 | . 1 . . Zone Layout 1 | . 1 . . Fabricator Hacks . | . . . . Repair Station Hacks 6 | . 6 . . Scan Component 3 | . 3 . . Repair 3 | . 3 . . Recycling Unit Hacks 7 | . 6 . 1 Process 1 | . 1 . . Report Inventory 4 | . 4 . . Retrieve Matter 1 | . 1 . . Retrieve Components 1 | . . . 1 Scanalyzer . | . . . . Garrison Access Hacks . | . . . . Unauthorized Hacks . | . . . . Terminals . | . . . . Fabricators . | . . . . Repair Stations . | . . . . Recycling Units . | . . . . Scanalyzers . | . . . . Garrison Access . | . . . . Data Cores Recovered . | . . . . Used . | . . . . Hacking Detections 14 | . 9 5 . Full Trace Events 4 | . 2 2 . Feedback Events . | . . . . Feedback Blocked . | . . . . Robot Schematics Acquired . | . . . . Robots Built . | . . . . Authchips . | . . . . Time . | . . . . Total Robot Build Rating . | . . . . Part Schematics Acquired . | . . . . Parts Built . | . . . . Authchips . | . . . . Time . | . . . . Total Part Build Rating . | . . . . Parts Repaired 3 | . 3 . . Time 84 | . 84 . . Parts Recycled . | . . . . Recycled Matter 1 | . 1 . . Retrieved Matter 1 | . 1 . . Retrieved Components 2 | . . . 2 Parts Scanalyzed . | . . . . Part Schematics Acquired . | . . . . Parts Damaged . | . . . . Bothacking | -11 -10 -9 -8 ------------ Run | Yrd Mat Mat Mat Used RIF Installer . | . . . . Robots Hacked 1 | . 1 . . Non-combat . | . . . . Combat 1 | . 1 . . Robot Hacks Applied 1 | . 1 . . parse_system 1 | . 1 . . Relay Couplers Released . | . . . . Fabnet Peak Effective % . | . . . . Robots Rewired . | . . . . Allies Hacked . | . . . . Hacks Repelled . | . . . . Allies | -11 -10 -9 -8 -------- Run | Yrd Mat Mat Mat Total Allies . | . . . . Largest Group . | . . . . Highest-Rated Group . | . . . . Highest-Rated Ally . | . . . . Total Orders . | . . . . Ally Attacks . | . . . . Total Damage . | . . . . Kills . | . . . . Allies Corrupted . | . . . . Allies Melted . | . . . . Intel | -11 -10 -9 -8 ------- Run | Yrd Mat Mat Mat Robot Analysis Total 1 | . 1 . . Derelict Logs Recovered . | . . . . Drone Launches . | . . . . Drone Recoveries . | . . . . Exploration | -11 -10 -9 -8 ------------- Run | Yrd Mat Mat Mat Turns Passed 2496 | 97 1204 994 201 Spaces Moved 1223 | 71 713 395 44 Core 17 | 17 . . . Treads 210 | . 159 51 . Legs 157 | 6 . 151 . Wheels 202 | 48 154 . . Hover 622 | . 385 193 44 Flight 15 | . 15 . . Fastest Speed 50 | 50 56 160 240 Average Speed 152 | 76 138 181 240 Slowest Speed 330 | 120 300 330 240 Overloaded Moves . | . . . . Propulsion Burnouts . | . . . . Robots Hopped . | . . . . Cave-ins Triggered . | . . . . Exploration Rate (%) 36 | 8 95 38 6 Regions Visited 3 Branch Regions . Pre-discovered Areas . | . . . . Known Exits Taken . | . . . . Unknown Exits Taken 3 | 1 1 1 . Scrap Searched . | . . . . Spaces Dug . | . . . . Terrain Destroyed 49 | . 10 39 . Melee . | . . . . Projectile . | . . . . AOE 49 | . 10 39 . Terrain Rammed . | . . . . Walls Destroyed . | . . . . Machines Disabled . | . . . . Actions | -11 -10 -9 -8 --------- Run | Yrd Mat Mat Mat Total 1586 | 98 866 545 77 Wait 71 | 3 41 22 5 Move 1220 | 70 712 394 44 Hop . | . . . . Pick Up 57 | 9 29 17 2 Fast Attach 4 | . 2 2 . Attach 19 | 6 4 8 1 Detach . | . . . . Swap 31 | 3 19 9 . Drop 23 | . 15 8 . Fire 92 | 7 31 50 4 Melee 48 | . 13 35 . Ram 21 | . . . 21 Kick . | . . . . Crush . | . . . . Escape Stasis . | . . . . Rewire . | . . . . Trap . | . . . . Miscellaneous . | . . . . Route ------- -11/Scrapyard -10/Materials (discovered 4 exits: *Mat x3 / [*Sub]) -9/Materials (discovered 2 exits: *Mat / [*Min]) -8/Materials History --------- Turn | Location | Event 2 | -11/Scrapyard | Met Revision 17 66 | -11/Scrapyard | Discovered new exit (range 8) 98 | -11/Scrapyard | Entered Materials 145 | -10/Materials | Repaired Wheel 171 | -10/Materials | Repaired Grenade Launcher 313 | -10/Materials | Build established: Mutant 317 | -10/Materials | Discovered new exit (range 6) 564 | -10/Materials | Discovered new exit (range 16) 757 | -10/Materials | Discovered new exit (range 11) 863 | -10/Materials | Repaired Spread Laser 1239 | -10/Materials | Core integrity fell below 50% 1242 | -10/Materials | Discovered new exit (range 8) 1302 | -10/Materials | Entered another Materials area 1302 | -9/Materials | Evolved 2 slots: Utility x2 1475 | -9/Materials | System corruption reached 10% 1684 | -9/Materials | Discovered new exit (range 11) 1760 | -9/Materials | Core integrity fell below 50% 2243 | -9/Materials | Discovered new exit (range 16) 2278 | -9/Materials | Core integrity fell below 20% 2296 | -9/Materials | Entered another Materials area 2296 | -8/Materials | Evolved 2 slots: Propulsion x2 2462 | -8/Materials | Core integrity fell below 50% 2472 | -8/Materials | Lost 5 parts (1n3u1w) 2482 | -8/Materials | Core integrity fell below 20% 2497 | -8/Materials | Destroyed by G-47 Trooper with Particle Gun Last Messages --------------- Slammed into G-47 Trooper. Destabilizing: Core damaged (-11). Critical hit (Burn: +37). Slammed into G-47 Trooper. Critical hit (Burn: +37). Slammed into G-47 Trooper. Destabilizing: System interference. Seismic Detector temporarily disabled. Slammed into G-47 Trooper. Destabilizing: Core damaged (-5). Slammed into G-47 Trooper. Critical hit (Burn: +37). Slammed into G-47 Trooper. Broken Hvy. Particle Gun destroyed. Slammed into G-47 Trooper. Seismic Detector destroyed. Slammed into G-47 Trooper. K-01 Serf collects debris. Slammed into G-47 Trooper. [Achievement: First Step to Greatness] Map ----- +----------------------------------------------------+ | ?????????????????????????????????????????????????? | | ?????????????????????????????????????????????????? | | ?????????????????????????????????????????????????? | | ?????????????????????????????????????????????????? | | ?????????????????????????????????????????????????? | | ?????????????????????????????????????????????????? | | ?????????????????????????????????????????????????? | | ?????????????????????????????????????????????????? | | ?????????????????????????????????????????????????? | | ?????????????????????????????????????????????????? | | ?????????????????????????????????????????????????? | | ?????????????????????????????????????????????????? | | ?????????????????????????????????????????????????? | | ?????????????????????????????????????????????????? | | ????????????????????#?????? "???????????????????? | | ????????????????????#?????? ??????????????????? | | ????????????????????????? ? ??????????????????? | | ??????????????????????????? #??????????????????? | | ??????????????????????????? #??????????????????? | | ??????????????????????????? #??????????????????? | | ??????????????????????????# #??????????????????? | | ????????????????????#?????# #??????????????????? | | ??????????????????????????# #??????????????????? | | ??????????????????????????# #??????????????????? | | ?????????????????########## #??????????????????? | | ?????????????????# g@# #??????????????????? | | ?????????????????# %%%%# #??????????????????? | | ?????????????????# %g%%# ###########+#??????? | | ?????????????????# %"k# ??????? | | ?????????????????# """ + ??????? | | ?????????????????# "" """ # ?????? | | ?????????????????# "Y """ # #??????? | | ?????????????????# "" """ # #??????? | | ?????????????????# # """ #??????? | | ?????????????????########## """"" #??????? | | ???????????????? #????????# """"" #??????? | | ??????????????????????????# """"" #??????? | | ??????????????????????????# """ #??????? | | ??????????????????????????# #??????? | | ??????????????????????????# #??????? | | ??????????????????????????# ########??????? | | ??????????????????????????# #?????????????? | | ??????????????????????????###### #?????????????? | | ???????????????????????????????# #?????????????? | | ???????????????????????????????# #?????????????? | | ???????????????????????????????# ????????????? | | ???????????????????????????????# ???????????? | | ???????????????????????????????# ??????????? | | ???????????????????????????????###### ?????????? | | ?????????????????????????????????????####????????? | +----------------------------------------------------+ Best States ------------- Heat Dissipation 35 Energy Generation 12 Energy Capacity 265 Matter Stores 400 Matter Capacity 400 Sight Range 16 Robot Scan Range 14 Terrain Scan Range 14 Terrain Scan Density 10 ECM Strength 1 Armor Coverage 80 Evasion (%) 53 Recoil Reduction 8 Item Schematics ----------------- None Robot Schematics ------------------ None Fabricated ------------ Nothing Alien Tech Used ----------------- None Achievements -------------- Close Call First Step to Greatness One Hack Too Far Part-time Mechanic Risk Taker Storm Trooper System Compromised Uninvited Guest Universal Adapter Challenges ------------ None Game ------ Seed TerrabombActiveDesublimator Manual? 0 Play Time 01:04:50 Cumulative 1.0 hours Start 2024.04.07 @ 03:46:13 End 2024.04.07 @ 04:54:19 Sessions 1 Manual Loads 0 Difficulty Rogue Special Mode None Game No. 1 Rogue 1 Adventurer 0 Explorer 0 Win Type - Total 0 Types 0/0/0/0/0/0/0/0/0 Lore% 1 Gallery% 2 Achievement% 3 Wizard Run 0 Options --------- Layout 1 ASCII 0 Keyboard 0 Movement Mouse Keybinds 0 Fullscreen 2 Font 32/Terminus Map View 50x35 Zoom Use 0% Tactical HUD 0 Map Filters NONE Filters NONE Steam 1 RUN: 665faaa8-975a-4fb2-99c1-e839c58d2fe8